fUST/lending_fUST_20250430
["ID","MTS","AMOUNT","RATE_DAILY","PERIOD"]
[359433727,1746015032452,-500.0,0.00025203,2]
[359433729,1746015032462,-500.0,0.00025203,2]
[359433731,1746015032471,-500.0,0.00025203,2]
[359433733,1746015032480,-500.0,0.00025203,2]
[359433735,1746015032490,-500.0,0.00025203,2]
[359433738,1746015032500,-500.0,0.00025203,2]
[359433740,1746015032510,-500.0,0.00025203,2]
[359433742,1746015032521,-500.0,0.00025203,2]
[359433744,1746015032530,-500.0,0.00025203,2]
[359433746,1746015032540,-500.0,0.00025203,2]
[359433748,1746015032553,-500.0,0.00025203,2]
[359433750,1746015032563,-500.0,0.00025203,2]
[359433752,1746015032573,-500.0,0.00025203,2]
[359433754,1746015032584,-500.0,0.00025203,2]
[359433756,1746015032594,-500.0,0.00025203,2]
[359433758,1746015032603,-50000.0,0.00025205,2]
[359433761,1746015032614,-280.14039261,0.00025205,2]
[359433763,1746015032624,-349.78282801,0.00025205,2]
[359433765,1746015032634,-748.533018,0.00025209,2]
[359433766,1746015032644,-155.0,0.00025246,2]
[359433769,1746015032654,-205.265368,0.00025273,2]
[359433771,1746015032664,-500.0,0.00025475,2]
[359433773,1746015032673,-300.0,0.00025475,2]
[359433775,1746015032682,-500.0,0.00025767,2]
[359433777,1746015032692,-500.0,0.00025767,2]
[359433779,1746015032702,-501.40596171,0.00025825,2]
[359433781,1746015032711,-267.12771172,0.00025849,2]
[359433783,1746015032721,-250.0,0.0002586,2]
[359433785,1746015032730,-201.05876858,0.00025948,2]
[359433787,1746015032740,-784.22,0.00025949,3]
[359433789,1746015032750,-333.01870165,0.0002596,2]
[359433791,1746015032759,-492.51689695,0.00025973,2]
[359433793,1746015032769,-500.0,0.00025973,2]
[359433795,1746015032779,-465.00040796,0.00025987,2]
[359433797,1746015032788,-47616.3066635,0.00025991,2]
[359433799,1746015032797,-7456.77032116,0.00025991,2]
[359433801,1746015032808,-462.90687302,0.00026,2]
[359433803,1746015032818,-500.78659211,0.00026,2]
[359433805,1746015032827,-509.75048435,0.00026,2]
[359433808,1746015032845,-249.80044934,0.0002602,2]
[359433811,1746015032860,-207.4,0.0002602,2]
[359433813,1746015032876,-1000.0,0.00026047,5]
[359433816,1746015032891,-261.3573578,0.0002606,4]
[359433818,1746015032904,-267.12771172,0.00026245,2]
[359433821,1746015032916,-199.7757001,0.00026265,2]
[359433823,1746015032930,-155.0,0.00026359,2]
[359433826,1746015032943,-380.02259846,0.000265,3]
[359433828,1746015032957,-267.12771172,0.0002664,2]
[359433831,1746015032970,-420.0,0.00026667,2]
[359433833,1746015032983,-420.0,0.00026667,2]
[359433836,1746015032999,-725.2825995,0.00026748,2]
[359433838,1746015033014,-1680.0,0.00026787,2]
[359433841,1746015033029,-267.12771172,0.00027036,2]
[359433843,1746015033042,-600.0,0.00027119,2]
[359433845,1746015033055,-1631.97138941,0.00027156,2]
[359433848,1746015033071,-1039.84109292,0.00027287,2]
[359433850,1746015033086,-278.872,0.00027297,16]
[359433852,1746015033100,-151.0,0.000273,13]
[359433855,1746015033115,-312.4007108,0.00027317,2]
[359433857,1746015033129,-436.14111368,0.00027373,2]
[359433858,1746015033142,-500.0,0.00027373,2]
[359433859,1746015033154,-500.0,0.00027373,2]
[359433860,1746015033165,-500.99010811,0.00027373,2]
[359433861,1746015033178,-500.66771323,0.00027373,2]
[359433862,1746015033189,-500.0,0.00027373,2]
[359433863,1746015033203,-500.0,0.00027373,2]
[359433864,1746015033216,-500.0,0.00027373,2]
[359433865,1746015033233,-500.0,0.00027373,2]
[359433866,1746015033245,-500.0,0.00027373,2]
[359433867,1746015033260,-500.0,0.00027373,2]
[359433868,1746015033272,-479.08039795,0.00027373,2]
[359433869,1746015033285,-500.0,0.00027373,2]
[359433870,1746015033296,-500.0,0.00027373,2]
[359433871,1746015033309,-500.0,0.00027373,2]
[359433872,1746015033320,-161.44957948,0.00027386,2]
[359433873,1746015033331,-174.60079796,0.00027386,2]
[359433874,1746015033343,-500.0,0.00027386,2]
[359433875,1746015033357,-500.0,0.00027386,2]
[359433876,1746015033370,-398.79959679,0.00027386,2]
[359433877,1746015033382,-611.41633905,0.00027386,2]
[359433878,1746015033392,-105784.84201884,0.00027387,2]
[359433880,1746015033408,-12493.21031482,0.00027387,2]
[359433887,1746015038242,-269.49188558,0.00023951,2]
[359433888,1746015038253,-500.0,0.00025203,2]
[359433889,1746015038264,-500.0,0.00025203,2]
[359433890,1746015038274,-500.0,0.00025203,2]
[359433891,1746015038285,-500.0,0.00025203,2]
[359433892,1746015038295,-500.0,0.00025203,2]
[359433893,1746015038305,-500.0,0.00025203,2]
[359433894,1746015038316,-500.0,0.00025203,2]
[359433898,1746015038518,-500.0,0.00025203,2]
[359433899,1746015038536,-500.0,0.00025203,2]
[359433900,1746015038546,-500.0,0.00025203,2]
[359433901,1746015038556,-500.0,0.00025203,2]
[359433902,1746015038567,-500.0,0.00025203,2]
[359433903,1746015038577,-500.0,0.00025203,2]
[359433904,1746015038587,-500.0,0.00025203,2]
[359433905,1746015038599,-500.0,0.00025203,2]
[359433906,1746015038608,-500.0,0.00025203,2]
[359433907,1746015038618,-500.0,0.00025203,2]
[359433908,1746015038629,-500.0,0.00025203,2]
[359433909,1746015038640,-500.0,0.00025203,2]
[359433910,1746015038651,-500.0,0.00025203,2]
[359433911,1746015038661,-500.0,0.00025203,2]
[359433912,1746015038670,-500.0,0.00025203,2]
[359433913,1746015038679,-306.0339778,0.00025203,2]
[359433914,1746015038689,-240.23079637,0.00025203,2]
[359433915,1746015038698,-500.0,0.00025203,2]
[359433916,1746015038707,-500.0,0.00025203,2]
[359433917,1746015038716,-500.0,0.00025203,2]
[359433918,1746015038726,-500.0,0.00025203,2]
[359433919,1746015038735,-500.0,0.00025203,2]
[359433920,1746015038745,-500.0,0.00025203,2]
[359433921,1746015038754,-500.0,0.00025203,2]
[359433922,1746015038763,-500.0,0.00025203,2]
[359433923,1746015038773,-500.0,0.00025203,2]
[359433924,1746015038782,-24570.86765734,0.00027387,2]
[359433925,1746015038791,-22370.3109635,0.00027387,2]
[359433926,1746015038801,-215.0738,0.00027389,2]
[359433927,1746015038810,-200.0,0.00027397,2]
[359433928,1746015038819,-400.0,0.00027397,2]
[359433929,1746015038829,-400.0,0.00027397,2]
[359433930,1746015038838,-384.19,0.00027397,2]
[359433931,1746015038847,-534.77,0.00027397,2]
[359433932,1746015038857,-308.51641077,0.00027397,2]
[359433933,1746015038866,-462.90606902,0.00027397,2]
[359433934,1746015038875,-155.35,0.00027397,2]
[359433935,1746015038885,-500.0,0.00027397,2]
[359433936,1746015038894,-400.0,0.00027397,2]
[359433937,1746015038904,-400.0,0.00027397,2]
[359433938,1746015038914,-224.67132818,0.00027397,2]
[359433939,1746015038924,-170.87564576,0.00027397,2]
[359433940,1746015038933,-400.0,0.00027397,2]
[359433941,1746015038943,-400.0,0.00027397,2]
[359433942,1746015038952,-500.0,0.00027397,2]
[359433943,1746015038962,-400.0,0.00027397,2]
[359433944,1746015038972,-433.91189065,0.00027397,2]
[359433945,1746015038981,-400.0,0.00027397,2]
[359433946,1746015038991,-501.61536876,0.00027397,2]
[359433947,1746015039001,-400.0,0.00027397,2]
[359433948,1746015039011,-200.40939367,0.00027397,2]
[359433949,1746015039020,-400.0,0.00027397,2]
[359433950,1746015039030,-400.0,0.00027397,2]
[359433951,1746015039040,-400.0,0.00027397,2]
[359433952,1746015039050,-400.0,0.00027397,2]
[359433953,1746015039060,-400.0,0.00027397,2]
[359433954,1746015039070,-237.05,0.00027397,2]
[359433955,1746015039081,-400.0,0.00027397,2]
[359433956,1746015039091,-609.06,0.00027397,2]
[359433957,1746015039101,-535.23,0.00027397,2]
[359433958,1746015039110,-400.0,0.00027397,2]
[359433959,1746015039119,-400.0,0.00027397,2]
[359433960,1746015039129,-400.0,0.00027397,2]
[359433961,1746015039139,-548.23,0.00027397,2]
[359433962,1746015039149,-400.0,0.00027397,2]
[359433963,1746015039158,-172.7985716,0.00027397,2]
[359433964,1746015039169,-400.0,0.00027397,2]
[359433965,1746015039180,-418.23188733,0.00027397,2]
[359433966,1746015039189,-400.0,0.00027397,2]
[359433967,1746015039198,-400.0,0.00027397,2]
[359433968,1746015039209,-359.60589926,0.00027397,2]
[359433969,1746015039222,-400.0,0.00027397,2]
[359433970,1746015039233,-400.0,0.00027397,2]
[359433971,1746015039242,-400.0,0.00027397,2]
[359433972,1746015039252,-400.0,0.00027397,2]
[359433973,1746015039263,-422.57354578,0.00027397,2]
[359433974,1746015039274,-591.18,0.00027397,2]
[359433975,1746015039283,-400.0,0.00027397,2]
[359433976,1746015039292,-400.0,0.00027397,2]
[359433977,1746015039302,-400.0,0.00027397,2]
[359433978,1746015039313,-400.0,0.00027397,2]
[359433979,1746015039322,-484.89,0.00027397,2]
[359433980,1746015039332,-400.0,0.00027397,2]
[359433981,1746015039342,-400.0,0.00027397,2]
[359433982,1746015039353,-400.0,0.00027397,2]
[359433983,1746015039363,-490.91,0.00027397,2]
[359433984,1746015039373,-400.0,0.00027397,2]
[359433985,1746015039382,-468.99,0.00027397,2]
[359433986,1746015039392,-400.0,0.00027397,2]
[359433987,1746015039402,-400.0,0.00027397,2]
[359433988,1746015039412,-400.0,0.00027397,2]
[359433989,1746015039422,-771.18,0.00027397,2]
[359433990,1746015039431,-1124.82,0.00027397,2]
[359433991,1746015039442,-400.0,0.00027397,2]
[359433992,1746015039452,-400.0,0.00027397,2]
[359433993,1746015039461,-1638.46,0.00027397,2]
[359433994,1746015039471,-400.0,0.00027397,2]
[359433995,1746015039481,-573.23,0.00027397,2]
[359433996,1746015039491,-400.0,0.00027397,2]
[359433997,1746015039501,-400.0,0.00027397,2]
[359433998,1746015039511,-400.0,0.00027397,2]
[359433999,1746015039522,-548.97,0.00027397,2]
[359434000,1746015039532,-400.0,0.00027397,2]
[359434001,1746015039541,-400.0,0.00027397,2]
[359434002,1746015039550,-2434.75,0.00027397,2]
[359434003,1746015039562,-400.0,0.00027397,2]
[359434004,1746015039571,-400.0,0.00027397,2]
[359434005,1746015039581,-400.0,0.00027397,2]
[359434006,1746015039591,-539.58361146,0.00027397,2]
[359434007,1746015039602,-400.0,0.00027397,2]
[359434008,1746015039613,-506.18,0.00027397,2]
[359434009,1746015039623,-400.0,0.00027397,2]
[359434010,1746015039634,-692.7,0.00027397,2]
[359434011,1746015039644,-400.0,0.00027397,2]
[359434012,1746015039654,-995.06,0.00027397,2]
[359434013,1746015039664,-400.0,0.00027397,2]
[359434014,1746015039674,-400.0,0.00027397,2]
[359434015,1746015039684,-400.0,0.00027397,2]
[359434016,1746015039693,-400.0,0.00027397,2]
[359434017,1746015039704,-757.89,0.00027397,2]
[359434018,1746015039714,-501.43,0.00027397,2]
[359434019,1746015039723,-416.99,0.00027397,2]
[359434020,1746015039733,-400.0,0.00027397,2]
[359434022,1746015039742,-400.0,0.00027397,2]
[359434023,1746015039752,-400.0,0.00027397,2]
[359434024,1746015039762,-437.36,0.00027397,2]
[359434025,1746015039772,-400.0,0.00027397,2]
[359434026,1746015039782,-400.0,0.00027397,2]
[359434027,1746015039792,-636.49,0.00027397,2]
[359434028,1746015039802,-400.0,0.00027397,2]
[359434029,1746015039811,-400.0,0.00027397,2]
[359434030,1746015039821,-400.0,0.00027397,2]
[359434031,1746015039830,-209.96283554,0.00027397,2]
[359434032,1746015039840,-400.0,0.00027397,2]
[359434033,1746015039850,-400.0,0.00027397,2]
[359434034,1746015039860,-400.0,0.00027397,2]
[359434035,1746015039870,-412.46,0.00027397,2]
[359434036,1746015039879,-735.63,0.00027397,2]
[359434037,1746015039888,-400.0,0.00027397,2]
[359434038,1746015039898,-400.0,0.00027397,2]
[359434039,1746015039907,-400.0,0.00027397,2]
[359434040,1746015039917,-400.0,0.00027397,2]
[359434041,1746015039927,-1024.58,0.00027397,2]
[359434042,1746015039936,-227.24,0.00027397,2]
[359434043,1746015039946,-400.0,0.00027397,2]
[359434044,1746015039955,-1063.27,0.00027397,2]
[359434046,1746015039965,-400.0,0.00027397,2]
[359434048,1746015039975,-400.0,0.00027397,2]
[359434049,1746015039985,-827.38,0.00027397,2]
[359434050,1746015039994,-358.51779883,0.00027397,2]
[359434051,1746015040009,-41.48220117,0.00027397,2]
[359434052,1746015040019,-776.64,0.00027397,2]
[359434053,1746015040029,-418.51,0.00027397,2]
[359434054,1746015040039,-400.0,0.00027397,2]
[359434055,1746015040049,-400.0,0.00027397,2]
[359434056,1746015040058,-532.38,0.00027397,2]
[359434057,1746015040069,-400.0,0.00027397,2]
[359434059,1746015040080,-907.03,0.00027397,2]
[359434061,1746015040094,-400.0,0.00027397,2]
[359434063,1746015040105,-455.55852995,0.00027397,2]
[359434064,1746015040115,-400.0,0.00027397,2]
[359434066,1746015040125,-614.49,0.00027397,2]
[359434068,1746015040134,-400.0,0.00027397,2]
[359434070,1746015040144,-400.0,0.00027397,2]
[359434072,1746015040154,-400.0,0.00027397,2]
[359434074,1746015040163,-400.0,0.00027397,2]
[359434075,1746015040172,-693.83,0.00027397,2]
[359434077,1746015040182,-400.0,0.00027397,2]
[359434079,1746015040191,-400.0,0.00027397,2]
[359434081,1746015040200,-335.16665868,0.00027397,2]
[359434083,1746015040210,-400.0,0.00027397,2]
[359434084,1746015040223,-400.0,0.00027397,2]
[359434086,1746015040233,-400.0,0.00027397,2]
[359434088,1746015040243,-400.0,0.00027397,2]
[359434090,1746015040253,-554.09,0.00027397,2]
[359434092,1746015040265,-1819.66,0.00027397,2]
[359434094,1746015040274,-406.43,0.00027397,2]
[359434096,1746015040284,-411.76,0.00027397,2]
[359434098,1746015040295,-400.0,0.00027397,2]
[359434099,1746015040305,-400.0,0.00027397,2]
[359434101,1746015040314,-400.0,0.00027397,2]
[359434103,1746015040324,-400.0,0.00027397,2]
[359434105,1746015040334,-400.0,0.00027397,2]
[359434107,1746015040343,-400.0,0.00027397,2]
[359434109,1746015040352,-1909.62,0.00027397,2]
[359434110,1746015040361,-400.0,0.00027397,2]
[359434112,1746015040371,-219.18706403,0.00027397,2]
[359434114,1746015040380,-971.04,0.00027397,2]
[359434116,1746015040389,-400.0,0.00027397,2]
[359434118,1746015040399,-400.0,0.00027397,2]
[359434119,1746015040408,-400.0,0.00027397,2]
[359434121,1746015040418,-400.0,0.00027397,2]
[359434122,1746015040427,-400.0,0.00027397,2]
[359434124,1746015040437,-400.0,0.00027397,2]
[359434126,1746015040446,-400.0,0.00027397,2]
[359434127,1746015040456,-400.0,0.00027397,2]
[359434128,1746015040465,-400.0,0.00027397,2]
[359434129,1746015040474,-400.0,0.00027397,2]
[359434130,1746015040484,-400.0,0.00027397,2]
[359434131,1746015040493,-400.0,0.00027397,2]
[359434132,1746015040503,-400.0,0.00027397,2]
[359434133,1746015040512,-400.0,0.00027397,2]
[359434134,1746015040521,-400.0,0.00027397,2]
[359434135,1746015040531,-809.98,0.00027397,2]
[359434136,1746015040540,-1208.56,0.00027397,2]
[359434138,1746015040550,-400.0,0.00027397,2]
[359434139,1746015040560,-200.0,0.00027397,2]
[359434140,1746015040570,-197.36185031,0.00027397,2]
[359434141,1746015040580,-733.03,0.00027397,2]
[359434142,1746015040590,-400.0,0.00027397,2]
[359434143,1746015040599,-400.0,0.00027397,2]
[359434144,1746015040609,-400.0,0.00027397,2]
[359434145,1746015040618,-400.0,0.00027397,2]
[359434146,1746015040628,-702.42,0.00027397,2]
[359434147,1746015040640,-400.0,0.00027397,2]
[359434148,1746015040650,-400.0,0.00027397,2]
[359434149,1746015040662,-1517.33,0.00027397,2]
[359434150,1746015040673,-558.69,0.00027397,2]
[359434151,1746015040685,-400.0,0.00027397,2]
[359434152,1746015040696,-400.0,0.00027397,2]
[359434153,1746015040707,-400.0,0.00027397,2]
[359434154,1746015040718,-976.14,0.00027397,2]
[359434155,1746015040729,-400.0,0.00027397,2]
[359434156,1746015040740,-1058.21,0.00027397,2]
[359434157,1746015040749,-440.57,0.00027397,2]
[359434158,1746015040759,-400.0,0.00027397,2]
[359434159,1746015040770,-400.0,0.00027397,2]
[359434160,1746015040782,-637.44,0.00027397,2]
[359434161,1746015040791,-671.42,0.00027397,2]
[359434162,1746015040802,-378.77653241,0.00027397,2]
[359434163,1746015040814,-400.0,0.00027397,2]
[359434164,1746015040824,-548.49,0.00027397,2]
[359434165,1746015040835,-2156.27,0.00027397,2]
[359434166,1746015040846,-400.0,0.00027397,2]
[359434167,1746015040856,-400.0,0.00027397,2]
[359434168,1746015040867,-309.84,0.00027397,2]
[359434169,1746015040876,-400.0,0.00027397,2]
[359434170,1746015040886,-1619.89,0.00027397,2]
[359434171,1746015040896,-400.0,0.00027397,2]
[359434172,1746015040906,-1646.96,0.00027397,2]
[359434173,1746015040916,-2176.09,0.00027397,2]
[359434174,1746015040927,-400.0,0.00027397,2]
[359434175,1746015040937,-226.78531463,0.00027397,2]
[359434176,1746015040946,-400.0,0.00027397,2]
[359434177,1746015040956,-503.74,0.00027397,2]
[359434178,1746015040966,-1310.52,0.00027397,2]
[359434179,1746015040976,-4793.62,0.00027397,2]
[359434180,1746015040986,-230.7218011,0.00027397,2]
[359434181,1746015040996,-400.0,0.00027397,2]
[359434182,1746015041006,-2039.89,0.00027397,2]
[359434183,1746015041016,-400.0,0.00027397,2]
[359434184,1746015041026,-400.0,0.00027397,2]
[359434185,1746015041037,-820.15,0.00027397,2]
[359434186,1746015041048,-400.0,0.00027397,2]
[359434187,1746015041058,-1608.01,0.00027397,2]
[359434188,1746015041069,-203.07,0.00027397,2]
[359434189,1746015041080,-400.0,0.00027397,2]
[359434190,1746015041090,-400.0,0.00027397,2]
[359434191,1746015041100,-400.0,0.00027397,2]
[359434192,1746015041111,-3294.13,0.00027397,2]
[359434193,1746015041121,-400.0,0.00027397,2]
[359434194,1746015041131,-594.06,0.00027397,2]
[359434195,1746015041140,-500.0,0.00027397,2]
[359434196,1746015041150,-400.0,0.00027397,2]
[359434197,1746015041160,-400.0,0.00027397,2]
[359434198,1746015041170,-443.60186557,0.00027397,2]
[359434199,1746015041179,-4436.33,0.00027397,2]
[359434200,1746015041188,-400.0,0.00027397,2]
[359434201,1746015041198,-1188.42,0.00027397,2]
[359434202,1746015041208,-400.0,0.00027397,2]
[359434203,1746015041218,-939.0,0.00027397,2]
[359434204,1746015041230,-500.0,0.00027397,2]
[359434205,1746015041241,-400.0,0.00027397,2]
[359434206,1746015041250,-400.0,0.00027397,2]
[359434207,1746015041259,-1116.06,0.00027397,2]
[359434208,1746015041269,-400.0,0.00027397,2]
[359434209,1746015041278,-400.0,0.00027397,2]
[359434210,1746015041288,-400.0,0.00027397,2]
[359434211,1746015041297,-400.0,0.00027397,2]
[359434212,1746015041308,-869.21,0.00027397,2]
[359434213,1746015041319,-530.56,0.00027397,2]
[359434214,1746015041329,-1169.314167,0.00027397,2]
[359434215,1746015041340,-193.188288,0.00027397,120]
[359434216,1746015041350,-162.2,0.000274,24]
[359434217,1746015041361,-156.4,0.000274,2]
[359434218,1746015041372,-267.12771172,0.00027431,2]
[359434219,1746015041382,-165.77285642,0.00027432,9]
[359434220,1746015041392,-2962.36796819,0.00027453,2]
[359434221,1746015041401,-28033.26905902,0.00027469,2]
[359434222,1746015041415,-19583.03760448,0.00027469,2]
[359434223,1746015041424,-7456.77032116,0.00027469,2]
[359434224,1746015041435,-151.0,0.00027479,2]
[359434225,1746015041445,-500.0,0.00027479,2]
[359434226,1746015041456,-500.0,0.00027479,2]
[359434227,1746015041466,-500.0,0.00027479,2]
[359434228,1746015041477,-500.0,0.00027479,2]
[359434229,1746015041489,-151.0,0.00027479,2]
[359434230,1746015041499,-151.0,0.00027479,2]
[359434231,1746015041510,-203.58035918,0.00027479,2]
[359434232,1746015041520,-299.9240172,0.00027479,2]
[359434233,1746015041532,-151.0,0.00027479,2]
[359434234,1746015041542,-500.0,0.00027479,2]
[359434235,1746015041554,-169.0,0.00027479,2]
[359434236,1746015041566,-500.0,0.00027479,2]
[359434237,1746015041575,-151.0,0.00027479,2]
[359434238,1746015041584,-151.92735848,0.00027479,2]
[359434239,1746015041594,-500.0,0.00027479,2]
[359434240,1746015041603,-500.0,0.00027479,2]
[359434241,1746015041613,-151.0,0.00027479,2]
[359434242,1746015041622,-582.0,0.00027479,2]
[359434243,1746015041631,-500.0,0.00027479,2]
[359434244,1746015041641,-500.0,0.00027479,2]
[359434245,1746015041651,-500.0,0.00027479,2]
[359434246,1746015041660,-500.0,0.00027479,2]
[359434247,1746015041670,-462.0,0.00027479,2]
[359434248,1746015041680,-500.0,0.00027479,2]
[359434249,1746015041689,-500.0,0.00027479,2]
[359434250,1746015041699,-278.77871383,0.00027479,2]
[359434251,1746015041709,-151.0,0.00027479,2]
[359434252,1746015041718,-151.0,0.00027479,2]
[359434253,1746015041728,-151.0,0.00027479,2]
[359434254,1746015041738,-500.0,0.00027479,2]
[359434255,1746015041748,-153.90034945,0.00027479,2]
[359434256,1746015041759,-151.0,0.00027479,2]
[359434257,1746015041769,-151.0,0.000275,16]
[359434258,1746015041779,-206.32392144,0.00027506,2]
[359434259,1746015041788,-500.0,0.00027506,2]
[359434260,1746015041799,-500.0,0.00027506,2]
[359434261,1746015041808,-500.0,0.00027506,2]
[359434262,1746015041819,-500.0,0.00027506,2]
[359434263,1746015041830,-151.0,0.00027506,2]
[359434264,1746015041840,-151.0,0.00027506,2]
[359434265,1746015041849,-151.0,0.00027506,2]
[359434266,1746015041860,-500.0,0.00027506,2]
[359434267,1746015041870,-500.0,0.00027506,2]
[359434268,1746015042000,-213.09472927,0.00027506,2]
[359434269,1746015042016,-500.0,0.00027506,2]
[359434270,1746015042027,-551.73585642,0.00027506,2]
[359434271,1746015042037,-582.0,0.00027506,2]
[359434272,1746015042047,-500.0,0.00027506,2]
[359434273,1746015042057,-500.0,0.00027506,2]
[359434274,1746015042068,-500.0,0.00027506,2]
[359434275,1746015042079,-500.0,0.00027506,2]
[359434276,1746015042090,-462.0,0.00027506,2]
[359434277,1746015042100,-500.0,0.00027506,2]
[359434278,1746015042110,-500.0,0.00027506,2]
[359434279,1746015042120,-151.0,0.00027506,2]
[359434280,1746015042130,-256.38723193,0.00027506,2]
[359434281,1746015042140,-151.0,0.00027506,2]
[359434282,1746015042150,-500.0,0.00027506,2]
[359434283,1746015042160,-151.0,0.00027506,2]
[359434284,1746015042170,-160.0,0.0002751,2]
[359434285,1746015042181,-47616.3066635,0.00027524,2]
[359434286,1746015042190,-7456.77032116,0.00027524,2]
[359434287,1746015042200,-5143.39964137,0.00027531,3]
[359434288,1746015042210,-160.0,0.00027531,2]
[359434289,1746015042223,-840.90604152,0.00027531,2]
[359434290,1746015042233,-160.0,0.00027531,2]
[359434291,1746015042244,-182.04053198,0.00027531,2]
[359434292,1746015042254,-160.0,0.00027531,2]
[359434293,1746015042267,-12592.61399441,0.00027531,2]
[359434294,1746015042277,-160.0,0.00027531,2]
[359434295,1746015042287,-500.0,0.00027534,2]
[359434296,1746015042298,-500.0,0.00027534,2]
[359434297,1746015042309,-317.76306522,0.00027534,2]
[359434298,1746015042320,-500.0,0.00027534,2]
[359434299,1746015042330,-184.68721416,0.00027534,2]
[359434300,1746015042339,-216.67517715,0.00027534,2]
[359434301,1746015042349,-224.45288229,0.00027534,2]
[359434302,1746015042359,-500.0,0.00027534,2]
[359434303,1746015042368,-368.70535897,0.00027534,2]
[359434304,1746015042377,-500.0,0.00027534,2]
[359434305,1746015042387,-582.0,0.00027534,2]
[359434306,1746015042398,-500.0,0.00027534,2]
[359434307,1746015042410,-500.0,0.00027534,2]
[359434308,1746015042420,-500.0,0.00027534,2]
[359434309,1746015042430,-500.0,0.00027534,2]
[359434310,1746015042442,-462.0,0.00027534,2]
[359434311,1746015042453,-500.0,0.00027534,2]
[359434312,1746015042463,-500.0,0.00027534,2]
[359434313,1746015042472,-235.29059309,0.00027534,2]
[359434314,1746015042482,-257.79157703,0.00027534,2]
[359434315,1746015042492,-500.0,0.00027534,2]
[359434316,1746015042502,-151.0,0.00027534,2]
[359434317,1746015042512,-151.0,0.00027561,2]
[359434318,1746015042523,-151.0,0.00027561,7]
[359434319,1746015042533,-151.0,0.00027561,2]
[359434320,1746015042543,-151.0,0.00027561,7]
[359434321,1746015042552,-152.370794,0.00027561,7]
[359434322,1746015042563,-281.432221,0.00027561,7]
[359434323,1746015042577,-281.432221,0.00027561,7]
[359434324,1746015042587,-500.0,0.00027561,2]
[359434325,1746015042596,-500.0,0.00027561,2]
[359434326,1746015042606,-500.0,0.00027561,2]
[359434327,1746015042615,-500.0,0.00027561,2]
[359434328,1746015042625,-417.8996145,0.00027561,2]
[359434329,1746015042634,-582.0,0.00027561,2]
[359434330,1746015042644,-500.0,0.00027561,2]
[359434331,1746015042654,-500.0,0.00027561,2]
[359434332,1746015042664,-527.08450396,0.00027561,2]
[359434333,1746015042675,-500.0,0.00027561,2]
[359434334,1746015042685,-462.0,0.00027561,2]
[359434336,1746015042695,-500.0,0.00027561,2]
[359434338,1746015042704,-500.0,0.00027561,2]
[359434340,1746015042714,-500.0,0.00027561,2]
[359434341,1746015042723,-151.0,0.00027561,2]
[359434342,1746015042733,-500.0,0.00027573,5]
[359434343,1746015042742,-500.0,0.00027573,5]
[359434344,1746015042751,-500.0,0.00027573,5]
[359434345,1746015042761,-500.0,0.00027573,5]